fUST/lending_fUST_20250518
["ID","MTS","AMOUNT","RATE_DAILY","PERIOD"]
[361349001,1747505444429,-450.0,0.00013698,2]
[361349002,1747505444438,-450.0,0.00013698,2]
[361349003,1747505444447,-450.0,0.00013698,2]
[361349004,1747505444456,-450.0,0.00013698,2]
[361349005,1747505444465,-350.0,0.00013698,2]
[361349006,1747505444474,-961.87,0.00013698,2]
[361349007,1747505444483,-450.0,0.00013698,2]
[361349008,1747505444629,-450.0,0.00013698,2]
[361349009,1747505444640,-350.0,0.00013698,2]
[361349010,1747505444650,-450.0,0.00013698,2]
[361349011,1747505444660,-450.0,0.00013698,2]
[361349012,1747505444669,-450.0,0.00013698,2]
[361349013,1747505444678,-450.0,0.00013698,2]
[361349014,1747505444687,-450.0,0.00013698,2]
[361349015,1747505444696,-400.0,0.00013698,2]
[361349016,1747505444706,-350.0,0.00013698,2]
[361349017,1747505444715,-500.0,0.00013698,2]
[361349018,1747505444724,-350.0,0.00013698,2]
[361349019,1747505444733,-1391.09,0.00013698,2]
[361349020,1747505444742,-1391.09,0.00013698,2]
[361349021,1747505444752,-1391.09,0.00013698,2]
[361349022,1747505444761,-1391.09,0.00013698,2]
[361349023,1747505444771,-1391.09,0.00013698,2]
[361349024,1747505444779,-1391.09,0.00013698,2]
[361349025,1747505444788,-1391.09,0.00013698,2]
[361349026,1747505444803,-1391.09,0.00013698,2]
[361349027,1747505444812,-1391.09,0.00013698,2]
[361349028,1747505444822,-350.0,0.00013698,2]
[361349029,1747505444831,-1391.09,0.00013698,2]
[361349030,1747505444840,-1391.09,0.00013698,2]
[361349031,1747505444849,-1391.09,0.00013698,2]
[361349032,1747505444858,-450.0,0.00013698,2]
[361349033,1747505444868,-1391.09,0.00013698,2]
[361349034,1747505444877,-1391.09,0.00013698,2]
[361349035,1747505444886,-1391.09,0.00013698,2]
[361349036,1747505444896,-450.0,0.00013698,2]
[361349037,1747505444906,-1391.09,0.00013698,2]
[361349038,1747505444916,-1391.09,0.00013698,2]
[361349039,1747505444925,-450.0,0.00013698,2]
[361349040,1747505444938,-1391.09,0.00013698,2]
[361349041,1747505444947,-1391.09,0.00013698,2]
[361349042,1747505444956,-450.0,0.00013698,2]
[361349043,1747505444966,-400.0,0.00013698,2]
[361349044,1747505444978,-450.0,0.00013698,2]
[361349045,1747505444987,-450.0,0.00013698,2]
[361349046,1747505444997,-350.0,0.00013698,2]
[361349047,1747505445006,-350.0,0.00013698,2]
[361349048,1747505445016,-350.0,0.00013698,2]
[361349049,1747505445026,-450.0,0.00013698,2]
[361349050,1747505445036,-450.0,0.00013698,2]
[361349051,1747505445045,-458.34631231,0.00013698,2]
[361349052,1747505445055,-450.0,0.00013698,2]
[361349053,1747505445064,-450.0,0.00013698,2]
[361349054,1747505445075,-350.0,0.00013698,2]
[361349055,1747505445084,-450.0,0.00013698,2]
[361349056,1747505445094,-450.0,0.00013698,2]
[361349057,1747505445103,-450.0,0.00013698,2]
[361349058,1747505445113,-461.86237603,0.00013698,2]
[361349059,1747505445123,-450.0,0.00013698,2]
[361349060,1747505445132,-450.0,0.00013698,2]
[361349061,1747505445144,-450.0,0.00013698,2]
[361349062,1747505445153,-450.0,0.00013698,2]
[361349063,1747505445163,-350.0,0.00013698,2]
[361349064,1747505445172,-450.0,0.00013698,2]
[361349065,1747505445181,-333.2464577,0.00013698,2]
[361349109,1747505448275,-116.7535423,0.00013698,2]
[361349110,1747505448287,-450.0,0.00013698,2]
[361349111,1747505448296,-350.0,0.00013698,2]
[361349112,1747505448305,-350.0,0.00013698,2]
[361349113,1747505448314,-450.0,0.00013698,2]
[361349114,1747505448324,-450.0,0.00013698,2]
[361349115,1747505448334,-350.0,0.00013698,2]
[361349116,1747505448343,-450.0,0.00013698,2]
[361349117,1747505448353,-350.0,0.00013698,2]
[361349118,1747505448362,-450.0,0.00013698,2]
[361349119,1747505448372,-350.0,0.00013698,2]
[361349120,1747505448381,-450.0,0.00013698,2]
[361349121,1747505448392,-450.0,0.00013698,2]
[361349122,1747505448406,-450.0,0.00013698,2]
[361349123,1747505448416,-350.0,0.00013698,2]
[361349124,1747505448425,-450.0,0.00013698,2]
[361349125,1747505448434,-450.0,0.00013698,2]
[361349126,1747505448443,-350.0,0.00013698,2]
[361349127,1747505448453,-450.0,0.00013698,2]
[361349128,1747505448462,-588.34,0.00013698,2]
[361349129,1747505448471,-450.0,0.00013698,2]
[361349130,1747505448480,-350.34277277,0.00013698,2]
[361349131,1747505448489,-350.0,0.00013698,2]
[361349132,1747505448498,-450.0,0.00013698,2]
[361349133,1747505448508,-397.17687291,0.00013698,2]
[361349134,1747505448524,-52.82312709,0.00013698,2]
[361349135,1747505448534,-450.0,0.00013698,2]
[361349136,1747505448543,-450.0,0.00013698,2]
[361349137,1747505448552,-450.0,0.00013698,2]
[361349138,1747505448561,-167.1776934,0.00013698,2]
[361349139,1747505448570,-350.0,0.00013698,2]
[361349140,1747505448580,-450.0,0.00013698,2]
[361349141,1747505448589,-450.0,0.00013698,2]
[361349142,1747505448599,-350.0,0.00013698,2]
[361349143,1747505448608,-390.31288351,0.00013698,2]
[361349145,1747505605699,272.4,0.00025663,120]
[361349147,1747505757315,845.79168629,0.00027397,120]
[361349149,1747506113172,2367.0,0.00025672,120]
[361349150,1747506142225,3075.5425875,0.00027397,120]
[361349151,1747506159025,293.158761,0.00027397,120]
[361349152,1747506236476,150.0,0.00025675,30]
[361349153,1747506237646,150.0,0.00025675,60]
[361349154,1747506239870,150.0,0.00025675,120]
[361349161,1747506421228,150.0,0.00025675,31]
[361349162,1747506421538,216.0,0.00025675,31]
[361349163,1747506421880,431.0,0.00025675,31]
[361349164,1747506422626,544.0,0.00025675,31]
[361349165,1747506422997,838.0,0.00025675,31]
[361349166,1747506423368,862.0,0.00025675,31]
[361349167,1747506423762,1331.0,0.00025675,31]
[361349168,1747506425611,150.0,0.00025675,31]
[361349169,1747506425907,150.0,0.00025675,31]
[361349170,1747506426210,161.0,0.00025675,31]
[361349171,1747506427971,150.0,0.00025675,31]
[361349172,1747506428262,215.0,0.00025675,31]
[361349173,1747506428599,430.0,0.00025675,31]
[361349174,1747506428927,859.0,0.00025675,31]
[361349175,1747506429268,1719.0,0.00025675,31]
[361349176,1747506429630,2170.0,0.00025675,31]
[361349177,1747506430002,3345.0,0.00025675,31]
[361349178,1747506430390,3437.0,0.00025675,31]
[361349179,1747506430816,5309.0,0.00025675,31]
[361349184,1747506513977,10000.0,0.00027397,120]
[361349185,1747506519704,-246.81407492,0.00011724,2]
[361349187,1747506531057,150.0,0.00025675,90]
[361349188,1747506541701,-207.61470232,0.00011724,2]
[361349189,1747506545802,-400.0,0.00011724,2]
[361349190,1747506548894,-235.60804932,0.00011724,2]
[361349191,1747506551415,-156.77724836,0.00011724,2]
[361349192,1747506553417,-212.21045333,0.00011724,2]
[361349193,1747506555551,-160.0,0.00011724,2]
[361349194,1747506557414,-269.8451427,0.00011724,2]
[361349195,1747506559942,-269.84486432,0.00011724,2]
[361349196,1747506562135,-201.02194271,0.00011724,2]
[361349221,1747506632640,-5000.0,0.00011607,2]
[361349222,1747506632650,-168.34,0.00012329,2]
[361349223,1747506632659,-841.72,0.00012329,2]
[361349224,1747506632667,-1200.0,0.00012624,2]
[361349225,1747506632676,-300.0,0.00012625,2]
[361349226,1747506632686,-300.0,0.00012626,2]
[361349227,1747506632695,-24900.0,0.00012627,2]
[361349228,1747506632704,-212.59943194,0.000134,2]
[361349229,1747506632713,-466.29813654,0.00013598,2]
[361349230,1747506632722,-158.0438359,0.000136,2]
[361349231,1747506632731,-363.327273,0.000136,2]
[361349232,1747506632740,-363.327273,0.000136,2]
[361349233,1747506632749,-466.29813651,0.00013632,2]
[361349234,1747506632758,-652.61296533,0.00013646,2]
[361349235,1747506632767,-500.0,0.00013665,2]
[361349236,1747506632776,-262.39795607,0.00013665,2]
[361349237,1747506632784,-276.5201839,0.00013665,2]
[361349238,1747506632793,-500.0,0.00013665,2]
[361349239,1747506632802,-466.29813651,0.00013667,2]
[361349240,1747506632811,-500.0,0.00013697,2]
[361349241,1747506632820,-500.0,0.00013697,2]
[361349242,1747506632829,-500.0,0.00013697,2]
[361349244,1747506632837,-320.42127807,0.00013697,2]
[361349246,1747506632846,-500.0,0.00013697,2]
[361349247,1747506632855,-500.0,0.00013697,2]
[361349248,1747506632864,-500.0,0.00013697,2]
[361349249,1747506632872,-500.0,0.00013697,2]
[361349250,1747506632881,-188.97957428,0.00013697,2]
[361349251,1747506632890,-92.90564995,0.00013697,2]
[361349252,1747506632936,-339.69950247,0.00013697,2]
[361349253,1747506632960,-67.39484758,0.00013697,2]
[361349254,1747506632969,-450.0,0.00013698,2]
[361349255,1747506632978,-450.0,0.00013698,2]
[361349256,1747506632987,-401.11380951,0.00013698,2]
[361349257,1747506632996,-450.0,0.00013698,2]
[361349258,1747506633004,-450.0,0.00013698,2]
[361349259,1747506633013,-450.0,0.00013698,2]
[361349260,1747506633022,-450.0,0.00013698,2]
[361349261,1747506633031,-409.46114614,0.00013698,2]
[361349262,1747506633040,-401.46806045,0.00013698,2]
[361349263,1747506633050,-450.0,0.00013698,2]
[361349264,1747506633058,-450.0,0.00013698,2]
[361349265,1747506633067,-450.0,0.00013698,2]
[361349266,1747506633076,-450.0,0.00013698,2]
[361349267,1747506633085,-450.0,0.00013698,2]
[361349268,1747506633094,-450.0,0.00013698,2]
[361349269,1747506633103,-450.0,0.00013698,2]
[361349270,1747506633113,-450.0,0.00013698,2]
[361349271,1747506633122,-450.0,0.00013698,2]
[361349272,1747506633131,-450.0,0.00013698,2]
[361349273,1747506633140,-592.63087171,0.00013698,2]
[361349274,1747506633149,-450.0,0.00013698,2]
[361349275,1747506633158,-350.0,0.00013698,2]
[361349276,1747506633167,-450.0,0.00013698,2]
[361349277,1747506633176,-450.0,0.00013698,2]
[361349278,1747506633185,-450.0,0.00013698,2]
[361349279,1747506633194,-450.0,0.00013698,2]
[361349280,1747506633203,-350.0,0.00013698,2]
[361349281,1747506633212,-450.0,0.00013698,2]
[361349282,1747506633221,-450.0,0.00013698,2]
[361349283,1747506633230,-450.0,0.00013698,2]
[361349284,1747506633239,-450.0,0.00013698,2]
[361349285,1747506633248,-450.0,0.00013698,2]
[361349286,1747506633257,-500.84550072,0.00013698,2]
[361349287,1747506633266,-350.0,0.00013698,2]
[361349288,1747506633275,-450.0,0.00013698,2]
[361349289,1747506633284,-350.0,0.00013698,2]
[361349290,1747506633293,-350.0,0.00013698,2]
[361349291,1747506633302,-350.0,0.00013698,2]
[361349292,1747506633311,-350.0,0.00013698,2]
[361349293,1747506633320,-450.0,0.00013698,2]
[361349294,1747506633328,-450.0,0.00013698,2]
[361349295,1747506633337,-450.0,0.00013698,2]
[361349296,1747506633345,-450.0,0.00013698,2]
[361349297,1747506633354,-450.0,0.00013698,2]
[361349298,1747506633363,-300.0,0.00013698,2]
[361349299,1747506633371,-350.0,0.00013698,2]
[361349300,1747506633380,-450.0,0.00013698,2]
[361349301,1747506633388,-300.0,0.00013698,2]
[361349302,1747506633397,-419.34525243,0.00013698,2]
[361349303,1747506633405,-235.92462203,0.00013698,2]
[361349304,1747506633415,-250.0,0.00013698,2]
[361349305,1747506633423,-300.0,0.00013698,2]
[361349306,1747506633432,-450.0,0.00013698,2]
[361349307,1747506633441,-249.19350403,0.00013698,2]
[361349308,1747506633449,-300.0,0.00013698,2]
[361349309,1747506633462,-450.0,0.00013698,2]
[361349310,1747506633471,-300.0,0.00013698,2]
[361349311,1747506633480,-374.6196243,0.00013698,2]
[361349312,1747506633488,-300.0,0.00013698,2]
[361349313,1747506633498,-450.0,0.00013698,2]
[361349314,1747506633506,-300.0,0.00013698,2]
[361349315,1747506633515,-450.0,0.00013698,2]
[361349316,1747506633524,-450.0,0.00013698,2]
[361349317,1747506633533,-300.0,0.00013698,2]
[361349318,1747506633542,-469.45273599,0.00013698,2]
[361349319,1747506633555,-254.87,0.00013698,2]
[361349479,1747506640949,-0.00602323,0.00013561,2]
[361349519,1747506643867,-4999.99397677,0.00013561,2]
[361349520,1747506643876,-270.15783106,0.00013598,2]
[361349521,1747506643886,-559.72726401,0.00013698,2]
[361349522,1747506643895,-197.73,0.00013698,2]
[361349523,1747506643904,-253.6660509,0.00013698,2]
[361349524,1747506643913,-450.0,0.00013698,2]
[361349525,1747506643922,-450.0,0.00013698,2]
[361349526,1747506643931,-450.0,0.00013698,2]
[361349527,1747506643940,-165.62144406,0.00013698,2]
[361349528,1747506643949,-450.0,0.00013698,2]
[361349530,1747506643959,-450.0,0.00013698,2]
[361349532,1747506643967,-352.52498597,0.00013698,2]
[361349534,1747506643977,-400.0,0.00013698,2]
[361349535,1747506643986,-400.0,0.00013698,2]
[361349536,1747506643995,-507.45487003,0.00013698,2]
[361349537,1747506644004,-450.0,0.00013698,2]
[361349538,1747506644014,-450.0,0.00013698,2]
[361349539,1747506644023,-450.0,0.00013698,2]
[361349540,1747506644032,-400.0,0.00013698,2]
[361349541,1747506644041,-450.0,0.00013698,2]
[361349542,1747506644051,-450.0,0.00013698,2]
[361349543,1747506644060,-401.49548055,0.00013698,2]
[361349544,1747506644069,-401.31841447,0.00013698,2]
[361349545,1747506644078,-450.0,0.00013698,2]
[361349546,1747506644087,-450.0,0.00013698,2]
[361349547,1747506644097,-400.0,0.00013698,2]
[361349548,1747506644106,-400.0,0.00013698,2]
[361349549,1747506644115,-450.0,0.00013698,2]
[361349550,1747506644125,-450.0,0.00013698,2]
[361349551,1747506644135,-450.0,0.00013698,2]
[361349552,1747506644144,-450.0,0.00013698,2]
[361349553,1747506644153,-400.0,0.00013698,2]
[361349554,1747506644162,-400.0,0.00013698,2]
[361349555,1747506644172,-450.0,0.00013698,2]
[361349556,1747506644181,-400.0,0.00013698,2]
[361349557,1747506644190,-450.0,0.00013698,2]
[361349558,1747506644200,-408.6563908,0.00013698,2]
[361349559,1747506644209,-450.0,0.00013698,2]
[361349560,1747506644221,-450.0,0.00013698,2]
[361349561,1747506644231,-450.0,0.00013698,2]
[361349562,1747506644240,-400.05526058,0.00013698,2]
[361349563,1747506644250,-450.0,0.00013698,2]
[361349564,1747506644261,-450.0,0.00013698,2]
[361349565,1747506644271,-450.0,0.00013698,2]
[361349566,1747506644281,-450.0,0.00013698,2]
[361349567,1747506644291,-450.0,0.00013698,2]
[361349568,1747506644301,-450.0,0.00013698,2]
[361349569,1747506644311,-430.32,0.00013698,2]
[361349570,1747506644320,-450.0,0.00013698,2]
[361349571,1747506644330,-450.0,0.00013698,2]
[361349572,1747506644339,-450.0,0.00013698,2]
[361349573,1747506644348,-258.69708356,0.00013698,2]
[361349574,1747506644359,-450.0,0.00013698,2]
[361349575,1747506644369,-450.0,0.00013698,2]
[361349576,1747506644378,-400.0,0.00013698,2]
[361349577,1747506644387,-450.0,0.00013698,2]
[361349578,1747506644396,-450.0,0.00013698,2]
[361349579,1747506644405,-450.0,0.00013698,2]
[361349580,1747506644415,-450.0,0.00013698,2]
[361349581,1747506644424,-450.0,0.00013698,2]
[361349582,1747506644433,-500.0,0.00013698,2]
[361349583,1747506644443,-500.0,0.00013698,2]
[361349584,1747506644453,-500.0,0.00013698,2]
[361349585,1747506644465,-315.38,0.00013698,2]
[361349586,1747506644475,-450.0,0.00013698,2]
[361349587,1747506644484,-450.0,0.00013698,2]
[361349588,1747506644493,-350.0,0.00013698,2]
[361349589,1747506644503,-502.74106741,0.00013698,2]
[361349590,1747506644512,-369.04,0.00013698,2]
[361349591,1747506644522,-450.0,0.00013698,2]
[361349592,1747506644531,-450.0,0.00013698,2]
[361349593,1747506644541,-450.0,0.00013698,2]
[361349594,1747506644551,-450.0,0.00013698,2]
[361349595,1747506644561,-585.78,0.00013698,2]
[361349596,1747506644570,-350.0,0.00013698,2]
[361349597,1747506644580,-450.0,0.00013698,2]
[361349598,1747506644589,-450.0,0.00013698,2]
[361349599,1747506644599,-450.0,0.00013698,2]
[361349600,1747506644608,-450.0,0.00013698,2]
[361349601,1747506644617,-333.44,0.00013698,2]
[361349602,1747506644627,-450.0,0.00013698,2]
[361349603,1747506644636,-450.0,0.00013698,2]
[361349604,1747506644645,-450.0,0.00013698,2]
[361349605,1747506644654,-450.0,0.00013698,2]
[361349606,1747506644663,-450.0,0.00013698,2]
[361349607,1747506644673,-450.0,0.00013698,2]
[361349608,1747506644682,-450.0,0.00013698,2]
[361349609,1747506644692,-450.0,0.00013698,2]
[361349610,1747506644701,-450.0,0.00013698,2]
[361349611,1747506644711,-450.0,0.00013698,2]
[361349612,1747506644720,-450.0,0.00013698,2]
[361349613,1747506644729,-450.0,0.00013698,2]
[361349614,1747506644738,-450.0,0.00013698,2]
[361349615,1747506644748,-261.2559498,0.00013698,2]
[361349616,1747506644763,-581.5340502,0.00013698,2]
[361349617,1747506644773,-842.79,0.00013698,2]
[361349618,1747506644782,-842.79,0.00013698,2]
[361349619,1747506644791,-842.79,0.00013698,2]
[361349620,1747506644800,-842.79,0.00013698,2]
[361349621,1747506644809,-842.79,0.00013698,2]
[361349622,1747506644818,-450.0,0.00013698,2]
[361349623,1747506644827,-842.79,0.00013698,2]
[361349624,1747506644836,-842.79,0.00013698,2]
[361349625,1747506644845,-842.79,0.00013698,2]
[361349626,1747506644858,-842.79,0.00013698,2]
[361349627,1747506644867,-842.79,0.00013698,2]
[361349628,1747506644876,-842.79,0.00013698,2]
[361349629,1747506644885,-102.1303316,0.00013698,2]
[361349630,1747506644898,-347.8696684,0.00013698,2]
[361349631,1747506644907,-450.0,0.00013698,2]
[361349632,1747506644917,-250.06348451,0.00013698,2]
[361349647,1747506646679,-199.93651549,0.00013698,2]
[361349648,1747506646689,-450.0,0.00013698,2]
[361349649,1747506646698,-450.0,0.00013698,2]
[361349650,1747506646707,-450.0,0.00013698,2]
[361349651,1747506646717,-450.0,0.00013698,2]
[361349652,1747506646726,-450.0,0.00013698,2]
[361349653,1747506646736,-450.0,0.00013698,2]
[361349654,1747506646745,-450.0,0.00013698,2]
[361349655,1747506646754,-450.0,0.00013698,2]
[361349656,1747506646763,-450.0,0.00013698,2]
[361349657,1747506646772,-403.0591896,0.00013698,2]
[361349658,1747506646781,-450.0,0.00013698,2]
[361349659,1747506646791,-376.7,0.00013698,2]
[361349660,1747506646801,-350.0,0.00013698,2]
[361349661,1747506646810,-450.0,0.00013698,2]
[361349662,1747506646819,-450.0,0.00013698,2]
[361349663,1747506646828,-450.0,0.00013698,2]
[361349664,1747506646837,-350.0,0.00013698,2]
[361349665,1747506646847,-525.2,0.00013698,2]
[361349666,1747506646855,-450.0,0.00013698,2]
[361349667,1747506646865,-450.0,0.00013698,2]
[361349668,1747506646874,-450.0,0.00013698,2]
[361349669,1747506646883,-350.0,0.00013698,2]
[361349670,1747506646892,-350.0,0.00013698,2]
[361349671,1747506646901,-312.02352922,0.00013698,2]
[361349672,1747506646914,-37.97647078,0.00013698,2]
[361349673,1747506646923,-450.0,0.00013698,2]
[361349674,1747506646931,-450.0,0.00013698,2]
[361349676,1747506646941,-350.0,0.00013698,2]
[361349677,1747506646951,-450.0,0.00013698,2]
[361349678,1747506646961,-450.0,0.00013698,2]
[361349679,1747506646971,-450.0,0.00013698,2]
[361349680,1747506646981,-450.0,0.00013698,2]
[361349681,1747506646991,-318.42529364,0.00013698,2]
[361349682,1747506647000,-450.0,0.00013698,2]
[361349683,1747506647009,-278.44290316,0.00013698,2]
[361349684,1747506647021,-171.55709684,0.00013698,2]
[361349685,1747506647030,-350.0,0.00013698,2]
[361349686,1747506647039,-450.0,0.00013698,2]
[361349687,1747506647048,-450.0,0.00013698,2]
[361349688,1747506647058,-450.0,0.00013698,2]
[361349689,1747506647067,-338.3023131,0.00013698,2]
[361349690,1747506647076,-450.0,0.00013698,2]
[361349691,1747506647085,-450.0,0.00013698,2]
[361349692,1747506647094,-450.0,0.00013698,2]
[361349693,1747506647103,-350.0,0.00013698,2]
[361349694,1747506647113,-450.0,0.00013698,2]
[361349695,1747506647122,-450.0,0.00013698,2]
[361349696,1747506647131,-349.15774634,0.00013698,2]
[361349697,1747506647154,-100.84225366,0.00013698,2]
[361349698,1747506647163,-450.0,0.00013698,2]
[361349699,1747506647172,-450.0,0.00013698,2]
[361349700,1747506647182,-450.0,0.00013698,2]
[361349701,1747506647191,-450.0,0.00013698,2]
[361349702,1747506647201,-450.0,0.00013698,2]
[361349703,1747506647211,-450.0,0.00013698,2]
[361349704,1747506647221,-450.0,0.00013698,2]
[361349705,1747506647230,-450.0,0.00013698,2]
[361349706,1747506647239,-450.0,0.00013698,2]
[361349707,1747506647248,-450.0,0.00013698,2]
[361349708,1747506647258,-450.0,0.00013698,2]
[361349709,1747506647267,-450.0,0.00013698,2]
[361349710,1747506647276,-450.0,0.00013698,2]
[361349711,1747506647286,-675.222596,0.00013698,2]
[361349712,1747506647295,-675.222596,0.00013698,2]
[361349713,1747506647305,-500.0,0.00013698,2]
[361349714,1747506647314,-500.0,0.00013698,2]
[361349715,1747506647450,-630.1418571,0.00013698,2]
[361349716,1747506647467,-450.0,0.00013698,2]
[361349717,1747506647477,-450.0,0.00013698,2]
[361349718,1747506647486,-675.222596,0.00013698,2]
[361349719,1747506647495,-675.222596,0.00013698,2]
[361349720,1747506647505,-172.78658945,0.00013698,2]
[361349721,1747506647514,-300.0,0.00013698,2]
[361349722,1747506647523,-427.50915335,0.00013698,2]
[361349723,1747506647532,-450.0,0.00013698,2]
[361349724,1747506647545,-227.29933521,0.00013698,2]
[361349725,1747506647554,-450.0,0.00013698,2]
[361349726,1747506647564,-450.0,0.00013698,2]
[361349727,1747506647573,-450.0,0.00013698,2]
[361349728,1747506647583,-350.0,0.00013698,2]
[361349729,1747506647592,-450.0,0.00013698,2]
[361349730,1747506647601,-450.0,0.00013698,2]
[361349731,1747506647611,-437.58,0.00013698,2]
[361349732,1747506647620,-297.88087247,0.00013698,2]
[361349733,1747506694862,-180.60140631,0.00012329,2]
[361349734,1747506695881,-152.0,0.00012329,2]
[361349735,1747506698852,-57.46859369,0.00012329,2]
[361349736,1747506698874,-102.53140631,0.00012329,2]
[361349737,1747506700911,-160.0,0.00012329,2]
[361349738,1747506702418,-62.52859369,0.00012329,2]
[361349739,1747506764899,150.0,0.00025675,30]
[361349751,1747506825831,100000.0,0.00027397,120]
[361349754,1747506831855,150.0,0.00025671,120]
[361349776,1747507235539,204.24,0.00027397,120]
[361349777,1747507292298,219.86907,0.00027397,120]
[361349786,1747507650132,-5000.0,0.00011724,2]
[361349787,1747507650157,-1200.0,0.00012328,2]
[361349788,1747507650181,-525.78,0.00012329,2]
[361349789,1747507650205,-438.15,0.00012329,2]
[361349790,1747507650229,-365.13,0.00012329,2]
[361349791,1747507650253,-304.27,0.00012329,2]
[361349792,1747507650278,-253.56,0.00012329,2]
[361349793,1747507650302,-211.3,0.00012329,2]
[361349794,1747507650328,-176.08,0.00012329,2]
[361349795,1747507650354,-2148.7412596,0.00012426,2]
[361349796,1747507650379,-329.456002,0.00012524,2]
[361349797,1747507650403,-546.9256074,0.00012714,2]
[361349798,1747507650430,-2026.53223727,0.000135,2]
[361349799,1747507650457,-2026.53223721,0.000135,2]
[361349800,1747507650483,-323.2360812,0.000135,2]
[361349801,1747507650510,-362.7518958,0.000135,2]
[361349802,1747507650536,-153.0,0.000135,2]
[361349803,1747507650567,-645.0,0.00013561,2]
[361349804,1747507650592,-1207.38235369,0.00013598,2]
[361349805,1747507650613,-153.0,0.000136,2]
[361349806,1747507650636,-363.327273,0.000136,2]
[361349807,1747507650659,-225.3790568,0.00013629,2]
[361349808,1747507650900,-1001.96073754,0.00013632,2]
[361349809,1747507723155,450.0,0.00025682,30]
[361349913,1747507832366,-2232.32519,0.00012205,2]
[361349915,1747507832382,-2767.67481,0.00012205,2]
[361349917,1747507832391,-880.44,0.00012329,2]
[361349919,1747507832400,-652.61296533,0.00013561,2]
[361349921,1747507832409,-186.02450293,0.00013597,2]
[361349924,1747507832419,-202.8411511,0.00013629,2]
[361349926,1747507832428,-205.42161614,0.00013632,2]
[361349927,1747507832437,-1207.38235368,0.00013667,2]
[361349929,1747507832446,-155.0,0.00013694,2]
[361349931,1747507832456,-300.0,0.00013696,2]
[361349933,1747507832465,-506.47258563,0.00013697,2]
[361349935,1747507832474,-500.0,0.00013697,2]
[361349937,1747507832483,-500.0,0.00013697,2]
[361349939,1747507832492,-500.0,0.00013697,2]
[361349941,1747507832501,-324.29489465,0.00013697,2]
[361349943,1747507832511,-500.0,0.00013697,2]
[361349945,1747507832520,-500.0,0.00013697,2]
[361349947,1747507832529,-332.285702,0.00013697,2]
[361349949,1747507832538,-300.0,0.00013697,2]
[361349951,1747507832548,-238.28799014,0.00013697,2]
[361349953,1747507832557,-563.68057938,0.00013697,2]
[361349955,1747507832566,-500.0,0.00013697,2]
[361349957,1747507832577,-500.0,0.00013697,2]
[361349959,1747507832586,-500.0,0.00013697,2]
[361349960,1747507832595,-500.0,0.00013697,2]
[361349961,1747507832604,-350.0,0.00013697,2]
[361349962,1747507832613,-500.0,0.00013697,2]
[361349963,1747507832621,-500.0,0.00013697,2]
[361349964,1747507832630,-500.0,0.00013697,2]
[361349965,1747507832639,-500.0,0.00013697,2]
[361349966,1747507832648,-500.0,0.00013697,2]
[361349967,1747507832657,-500.0,0.00013697,2]